Cogmind - Beta 13 @@@ ROGUE MODE // 2024.04.10 @ 20:40:40 Player: Exceptionally Mediocre Result: Destroyed by D-53 Grenadier with Mini Grenade Launcher Performance ------------- Evolutions (0) 0 Regions Visited (2) 400 Robots Destroyed (20) 100 Value Destroyed (332) 332 Prototype IDs (0) 0 Alien Tech Used (0) 0 Bonus (0) 0 TOTAL SCORE: 832 Bonus ------- None Cogmind --------- Core Integrity 0/250 Matter 50/300 Energy 240/250 System Corruption 1% Temperature Cool (0) Movement Rolling (95) Ox1 Location -10/Mines Parts ------- > --- POWER (1) -------- Ion Engine > --- PROPULSION (2) --- Wheel Wheel > --- UTILITY (2) ------ Large Storage Unit > --- WEAPON (2) ------- Light Cannon Rocket Launcher > --- INVENTORY (15) --- Light Ion Engine Light Ion Engine Light Nuclear Core Wheel Compact Wheel Heat Sink Small Battery (100) Medium Matter Pod (0) Sensor Array Medium Laser Beam Cannon Light Assault Rifle Mining Laser Peak State ------------ > --- POWER ------------ Ion Engine > --- PROPULSION ------- Wheel Wheel > --- UTILITY ---------- Small Storage Unit Improved Terrain Scanner > --- WEAPON ----------- Small Laser Light Assault Rifle > --- INVENTORY -------- Light Ion Engine Light Nuclear Core Wheel Wheel Compact Wheel Small Laser Grenade Launcher Mining Laser [Rating: 10] Favorites ----------- Power Ion Engine Engine Ion Engine Propulsion Wheel Wheel Wheel Utility Weapon Shielding Device Improved Terrain Scanner Storage Large Storage Unit Protection Weapon Shielding Weapon Light Cannon Energy Gun Small Laser Energy Cannon Beam Cannon Ballistic Gun Light Assault Rifle Ballistic Cannon Light Cannon Launcher Grenade Launcher Build | -11 -10 -10 ------- Run | Yrd Mat Min Slots Evolved . | . . . Power . | . . . Propulsion . | . . . Utility . | . . . Weapon . | . . . Parts Attached 19 | 9 8 2 Power 1 | 1 . . Engine 1 | 1 . . Core . | . . . Reactor . | . . . Propulsion 7 | 4 2 1 Treads . | . . . Leg . | . . . Wheel 7 | 4 2 1 Hover . | . . . Flight . | . . . Utility 4 | 2 2 . Device 1 | 1 . . Storage 2 | 1 1 . Processor . | . . . Hackware . | . . . Protection 1 | . 1 . Artifact . | . . . Weapon 7 | 2 4 1 Energy Gun 1 | 1 . . Energy Cannon 1 | . 1 . Ballistic Gun 1 | 1 . . Ballistic Cannon 2 | . 2 . Launcher 2 | . 1 1 Special Weapon . | . . . Impact Weapon . | . . . Slashing Weapon . | . . . Piercing Weapon . | . . . Special Melee Weapon . | . . . Unidentified Prototypes . | . . . Parts Lost 4 | . 1 3 Power . | . . . Propulsion 2 | . 1 1 Utility 1 | . . 1 Weapon 1 | . . 1 Highest Loss Streak 2 | . 1 2 To Critical Strikes . | . . . Average Slot Usage (%) 99 | . 100 96 Engine 14 | . 14 14 Wheel 27 | . 28 24 Device 4 | . 4 . Storage 14 | . 14 14 Protection 9 | . 9 14 Energy Gun 2 | . 2 . Energy Cannon 2 | . 2 . Ballistic Gun 2 | . 3 . Ballistic Cannon 10 | . 9 14 Launcher 9 | . 9 14 Naked Turns . | . . . Heaviest Build 32 | 13 32 32 Greatest Support 32 | 32 20 20 Greatest Overweight (x) 3 | . 1 3 Average Overweight (x) . | . . 1 Largest Inventory Capacity 15 | 8 15 15 Average Capacity 11 | 7 11 15 Most Carried 15 | 8 15 15 Average Carried 10 | 6 10 14 Final Capacity 15 | 8 15 15 Final Carried 15 | 8 15 13 Class Distribution -------------------- 100% | Mutant Dominant Class ---------------- Mutant | -10/Materials Mutant | -10/Mines Resources | -11 -10 -10 ----------- Run | Yrd Mat Min Matter Collected 465 | 299 129 37 Remotely . | . . . Salvage Created 496 | 155 284 57 Parts 39 | 14 25 . Haulers Intercepted 1 | . 1 . Recyclers Shooed . | . . . Parts Field Recycled . | . . . Retrieved Matter . | . . . Parts Self-Destructed . | . . . Prevented . | . . . Kills | -11 -10 -10 ------- Run | Yrd Mat Min Combat Hostiles Destroyed 24 | . 11 13 Guns 2 | . 2 . Cannons 1 | . . 1 AOE 21 | . 9 12 Classes Destroyed 8 | 2 5 1 Worker 1 | . 1 . Tunneler 4 | 4 . . Hauler 1 | . 1 . Recycler 1 | 1 . . Watcher 2 | . 2 . Swarmer 6 | . 6 . Grunt 5 | . 5 . Assembled 13 | . . 13 Best Kill Streak 13 | 3 7 13 Combat Bots Only 13 | . 6 13 Max Kills in Single Turn 3 | 1 2 3 Gunslinging . | . . . Exploded 3 | . 2 3 Melee . | . . . Uniques/NPCs Destroyed . | . . . Combat | -11 -10 -10 -------- Run | Yrd Mat Min Hostile Shots Fired 50 | . 23 27 Missed 14 | . 8 6 Damage Taken 728 | . 182 546 Core 261 | . 34 227 Absorbed by Shields . | . . . Redirected to Shielding 50 | . 8 42 Core Remaining (%) 100 | 100 . . Volleys Fired 69 | 9 43 17 Largest 2 | 2 2 1 Hottest 60 | 60 60 35 Shots Fired 93 | 18 58 17 Gun 48 | 18 30 . Cannon 20 | . 16 4 Launcher 25 | . 12 13 Special . | . . . Kinetic 40 | 9 27 4 Thermal 28 | 9 19 . Explosive 25 | . 12 13 Electromagnetic . | . . . Robot Hit Streak 8 | 8 7 3 Robot Miss Streak 4 | 1 4 2 Penetration Max . | . . . Secondary Targets . | . . . Shots Hit Robots 41 | 12 24 5 Core Hits 65 | 8 23 34 Critical Kills . | . . . Critical Parts Destroyed . | . . . Critical Strikes . | . . . Melee Attacks . | . . . Impact . | . . . Slashing . | . . . Piercing . | . . . Sneak Attacks . | . . . Combat Hostiles . | . . . Follow-up Attacks . | . . . Damage Inflicted 1736 | 121 752 863 Guns 286 | 121 165 . Cannons 152 | . 122 30 Explosions 1298 | . 465 833 Melee . | . . . Ramming . | . . . Kinetic 222 | 31 161 30 Thermal 216 | 90 126 . Explosive 1298 | . 465 833 Electromagnetic . | . . . Impact . | . . . Slashing . | . . . Piercing . | . . . Highest Corruption 1 | . 1 1 Average Corruption 1 | . 1 1 Corruption Purged . | . . . Corruption Blocked . | . . . Effects 2 | . 2 . Matter Fused 1 | . 1 . Data Loss (minor) 1 | . 1 . Overload Shots . | . . . Overflow Damage 44 | . 18 26 Projectiles . | . . . Explosions 44 | . 18 26 Melee . | . . . Knockbacks 3 | . 2 1 Impact . | . . . Kinetic 3 | . 2 1 Secondary . | . . . Self-Inflicted Damage 39 | . 21 18 Shots 2 | . 1 1 Rammed . | . . . Targets Rammed . | . . . Kicked . | . . . Crushed . | . . . Highest Temperature 67 | 40 67 . Average Temperature 24 | 19 25 . Received Heat Transfer 57 | . 57 . Siege Activations . | . . . Robots Corrupted . | . . . Combat Hostiles . | . . . Parts Fried . | . . . Impact Corruptions . | . . . Robots Melted . | . . . Combat Hostiles . | . . . Parts Melted . | . . . Heat Transferred 474 | 200 274 . Parts Sabotaged . | . . . Parts Stolen . | . . . Parts Stripped . | . . . Power Chain Reactions . | . . . Alert | -11 -10 -10 ------- Run | Yrd Mat Min Peak Influence 305 | 25 305 76 Initial 39 | . 16 39 Average 118 | 10 142 49 Maximum Alert Level 1 | . 1 . Low Security (%) 77 | 100 72 100 Level 1 22 | . 27 . Level 2 . | . . . Level 3 . | . . . Level 4 . | . . . Level 5 . | . . . High Security . | . . . Max Security . | . . . Squads Dispatched 1 | . 1 . Investigation 1 | . 1 . Extermination . | . . . Reinforcement . | . . . Assault . | . . . Garrison . | . . . Intercept . | . . . Searches Triggered . | . . . Construction Impeded . | . . . Haulers Reinforced . | . . . Active Scanning Responses . | . . . Cargo Convoy Interrupts . | . . . Stealth | -11 -10 -10 --------- Run | Yrd Mat Min Distress Signals . | . . . Communications Jammed . | . . . Distress Signals . | . . . Times Spotted 33 | . 16 17 Peak Tracking Total 10 | . 3 10 Tactical Retreats 1 | . . 1 Traps | -11 -10 -10 ------- Run | Yrd Mat Min Traps Triggered 2 | . 2 . Indirectly . | . . . Trap Hack Attempts . | . . . Triggered . | . . . Disarmed . | . . . Reprogrammed . | . . . Reused . | . . . Traps Extracted . | . . . Installed . | . . . Triggered . | . . . Machines | -11 -10 -10 ---------- Run | Yrd Mat Min Machines Disabled 2 | . 2 . Max in Single Turn 1 | . 1 . Machines Repaired . | . . . Machines Dismantled . | . . . Machines Sabotaged . | . . . Overloaded Fab Kills . | . . . Hacking | -11 -10 -10 --------- Run | Yrd Mat Min Machines Accessed 7 | . 7 . Terminals 6 | . 6 . Fabricators . | . . . Repair Stations . | . . . Recycling Units 1 | . 1 . Scanalyzers . | . . . Garrison Access . | . . . Total Hacks 22 | . 22 . Successful 11 | . 11 . Failed 11 | . 11 . Catastrophic . | . . . Database Lockouts . | . . . Manual 14 | . 14 . Terminals 21 | . 21 . Fabricators . | . . . Repair Stations . | . . . Recycling Units 1 | . 1 . Scanalyzers . | . . . Garrison Access . | . . . Terminal Hacks 4 | . 4 . Record 2 | . 2 . Robot Analysis 1 | . 1 . Scanalyzer Index 1 | . 1 . Fabricator Hacks . | . . . Repair Station Hacks . | . . . Recycling Unit Hacks 1 | . 1 . Report Inventory 1 | . 1 . Scanalyzer . | . . . Garrison Access Hacks . | . . . Unauthorized Hacks 6 | . 6 . Terminals 6 | . 6 . Botnet 6 | . 6 . Fabricators . | . . . Repair Stations . | . . . Recycling Units . | . . . Scanalyzers . | . . . Garrison Access . | . . . Data Cores Recovered . | . . . Used . | . . . Hacking Detections 4 | . 4 . Full Trace Events 2 | . 2 . Feedback Events . | . . . Feedback Blocked . | . . . Robot Schematics Acquired . | . . . Robots Built . | . . . Authchips . | . . . Time . | . . . Total Robot Build Rating . | . . . Part Schematics Acquired . | . . . Parts Built . | . . . Authchips . | . . . Time . | . . . Total Part Build Rating . | . . . Parts Repaired . | . . . Time . | . . . Parts Recycled . | . . . Recycled Matter . | . . . Retrieved Matter . | . . . Retrieved Components . | . . . Parts Scanalyzed . | . . . Part Schematics Acquired . | . . . Parts Damaged . | . . . Bothacking | -11 -10 -10 ------------ Run | Yrd Mat Min Used RIF Installer . | . . . Robots Hacked . | . . . Non-combat . | . . . Combat . | . . . Robot Hacks Applied . | . . . Relay Couplers Released . | . . . Fabnet Peak Effective % . | . . . Robots Rewired . | . . . Allies Hacked . | . . . Hacks Repelled . | . . . Allies | -11 -10 -10 -------- Run | Yrd Mat Min Total Allies . | . . . Largest Group . | . . . Highest-Rated Group . | . . . Highest-Rated Ally . | . . . Total Orders . | . . . Ally Attacks . | . . . Total Damage . | . . . Kills . | . . . Allies Corrupted . | . . . Allies Melted . | . . . Intel | -11 -10 -10 ------- Run | Yrd Mat Min Robot Analysis Total 1 | . 1 . Derelict Logs Recovered . | . . . Drone Launches . | . . . Drone Recoveries . | . . . Exploration | -11 -10 -10 ------------- Run | Yrd Mat Min Turns Passed 1104 | 149 879 76 Spaces Moved 965 | 103 821 41 Core 12 | 12 . . Treads . | . . . Legs . | . . . Wheels 953 | 91 821 41 Hover . | . . . Flight . | . . . Fastest Speed 50 | 50 80 95 Average Speed 88 | 89 88 97 Slowest Speed 125 | 100 95 125 Overloaded Moves . | . . . Propulsion Burnouts . | . . . Robots Hopped . | . . . Cave-ins Triggered . | . . . Exploration Rate (%) 35 | 4 80 23 Regions Visited 2 Branch Regions 1 Pre-discovered Areas . | . . . Known Exits Taken . | . . . Unknown Exits Taken 2 | 1 1 . Scrap Searched 1 | . . 1 Spaces Dug . | . . . Terrain Destroyed 153 | . 76 77 Melee . | . . . Projectile . | . . . AOE 153 | . 76 77 Terrain Rammed . | . . . Walls Destroyed . | . . . Machines Disabled . | . . . Actions | -11 -10 -10 --------- Run | Yrd Mat Min Total 1136 | 149 925 62 Wait 24 | . 24 . Move 963 | 102 820 41 Hop . | . . . Pick Up 41 | 22 18 1 Fast Attach 1 | . 1 . Attach 11 | 7 2 2 Detach . | . . . Swap 7 | 2 5 . Drop 20 | 7 12 1 Fire 69 | 9 43 17 Melee . | . . . Ram . | . . . Kick . | . . . Crush . | . . . Escape Stasis . | . . . Rewire . | . . . Trap . | . . . Miscellaneous . | . . . Route ------- -11/Scrapyard -10/Materials (discovered 3 exits: [*Mat x2] / [*Min]) -10/Mines History --------- Turn | Location | Event 18 | -11/Scrapyard | Discovered new exit (range 16) 150 | -11/Scrapyard | Entered Materials 298 | -10/Materials | Discovered new exit (range 16) 306 | -10/Materials | Build established: Mutant 464 | -10/Materials | Discovered new exit (range 14) 548 | -10/Materials | Discovered new exit (range 11) 1029 | -10/Materials | Entered Mines 1036 | -10/Mines | Received a Rocket Launcher from a helpful Derelict 1060 | -10/Mines | Assembled infested the area 1084 | -10/Mines | Core integrity fell below 50% 1103 | -10/Mines | Core integrity fell below 20% 1105 | -10/Mines | Destroyed by D-53 Grenadier with Mini Grenade Launcher Last Messages --------------- 01076_ Destroyed Asb. Hover Unit. 01076_ as-86437 destroyed. 01076_ as-69027 destroyed. 01077_ The unstable cave ceiling collapses. 01078_ Destroyed Asb. Hover Unit. 01078_ as-31436 destroyed. 01078_ as-11830 destroyed. 01080_ as-82373 destroyed. 01085_ The unstable cave ceiling collapses. 01086_ as-60215 knocked back. 01088_ as-60215 destroyed. 01091_ Acquired 6 matter. 01096_ C-30 ARC bursts open, deploying its payload. 01096_ D-53 Grenadier unfolds itself. 01098_ The unstable cave ceiling collapses. 01102_ Weapon Shielding destroyed. 01103_ The unstable cave ceiling collapses. 01104_ Grenade Launcher destroyed. 01105_ The unstable cave ceiling collapses. Map ----- +----------------------------------------------------+ | ?????????? ??????? ??????????????????? | | ????????? #?????? ??????????????????? | | ????????? ##????? #??????????????????? | | ????????? ##???? #??????????????????? | | ?????????? ##??? #####??????????????? | | ??????????# #??? #??????????????? | | ???????????# ##?# ??????????????? | | ???????????# ### ???????????????? | | ???????????# ?????????????????? | | ??????????## #??????????????????? | | ???###???## #???????????????????? | | ??## #??# #???????????????????? | | ??# #?# ##??????????????????? | | ?## ## ####???????????????? | | ## # #???????????????? | | # #### # ##??????????????? | | ##??? % ##?????????????? | | ##???? ??????????????? | | ### ##????## ??????????????? | | #??# #????## dd ##?????????????? | | ???# #????# #?????????????? | | ????#!]#????# #?????????????? | | ?????#* #????# ##????????????? | | ?# #??????# =####?## #????????????? | | ??#????????# #?## #????????????? | | ????????# ## @ #????????????? | | ????? ## #????????????? | | ???# ## #????????????? | | ???## ## ##????????????? | | ????## ######## # ##?????????????? | | ?????# #???????## % # ?????????????? | | ?????## ?????????# # # ?????????????? | | ??????## ?????????### #? ????????????? | | ???????# ????????????# % #? ????????????? | | ???????# ???????????? ## ?? ???????????? | | ???????# ???????????? ?#### #??????????????? | | ???????#???????????? ????? #??????????????? | | ???????????????????? ?????? #??????????????? | | ??????????????????? ?????? #??????????????? | | ????????????????????????????#??????????????? | | ???????????????????????????????????????????? | | ???????????????????????????????????????????? | | ???????????????????????????????????????????? | | ???????????????????????????????????????????? | | ???????????????????????????????????????????? | | ???????????????????????????????????????????? | | ???????????????????????????????????????????? | | | | | | | +----------------------------------------------------+ Best States ------------- Heat Dissipation 25 Energy Generation 10 Energy Capacity 250 Matter Stores 300 Matter Capacity 300 Sight Range 16 Terrain Scan Range 16 Terrain Scan Density 10 Weapon Shielding 33 Evasion (%) 44 Item Schematics ----------------- None Robot Schematics ------------------ None Fabricated ------------ Nothing Alien Tech Used ----------------- None Achievements -------------- None Challenges ------------ None Game ------ Seed PiercingSeismicAnalyzer Manual? 0 Play Time 00:22:47 Cumulative 33.4 hours Start 2024.04.10 @ 20:19:18 End 2024.04.10 @ 20:40:40 Sessions 1 Manual Loads 0 Difficulty Rogue Special Mode None Game No. 36 Rogue 36 Adventurer 0 Explorer 0 Win Type - Total 0 Types 0/0/0/0/0/0/0/0/0 Lore% 14 Gallery% 30 Achievement% 22 Wizard Run 0 Options --------- Layout 1 ASCII 0 Keyboard 1 Movement Vi Keybinds 0 Fullscreen 1 Font 24/Smallcaps Map View 50x35 Zoom Use 0% Tactical HUD 1 Map Filters NONE Filters NONE Steam 1 RUN: 29741819-6c89-4c64-9cac-9d10c2fa3b70